[Event "SWE-ch Class 1 2019"]
[Site "Eskilstuna"]
[Date "2019.07.13"]
[Round "6.4"]
[White "Kardell, Mathias"]
[Black "Forsberg, Andre"]
[Result "1-0"]
[ECO "C50"]
[WhiteElo "2064"]
[BlackElo "1982"]
[Annotator "NA"]
[PlyCount "43"]
[EventDate "2019.07.06"]
[EventType "tourn"]
[EventCountry "SWE"]
[SourceTitle "playchess.com"]
[Source "ChessBase"]
[SourceQuality "1"]
[TimeControl "40/5400+30:1800+30"]

1. e4 {[%emt 0:00:00]} e5 {[%emt 0:00:00]} 2. Nf3 {[%emt 0:00:00]} Nc6 {[%emt 0:00:00]} 3. Bc4 {[%emt 0:00:00]} Bc5 {[%emt 0:00:00]} 4. d3 {[%emt 0:00:13]} Nf6 {[%emt 0:00:32]} 5. O-O {[%emt 0:00:30]} a6 {[%emt 0:00:35]} 6. Nc3 {[%emt 0:01:57]} h6 {[%emt 0:01:28]} 7. a4 {[%emt 0:06:09]} d6 {[%emt 0:03:05]} 8. Ne2 {[%emt 0:15:48]} Bg4 {[%emt 0:04:05]} 9. c3 {[%emt 0:03:23]} Bxf3 {[%emt 0:01:32]} 10. gxf3 {[%emt 0:00:07]} Nh5 {[%emt 0:00:48]} 11. b4 {[%emt 0:05:10]} Ba7 {[%emt 0:00:59]} 12. Kh1 {[%emt 0:17:03]} Qh4 {[%emt 0:02:01]} 13. Ng3 {[%emt 0:01:57]} Bxf2 {[%emt 0:21:23]} 14. Nxh5 {[%emt 0:02:21]} g6 {[%emt 0:09:10]} 15. Nf6+ {[%emt 0:05:56]} Ke7 {[%emt 0:00:10]} 16. Nd5+ {[%emt 0:01:52]} Kd7 {[%emt 0:00:21]} 17. Qe2 {[%emt 0:02:29]} Ba7 {[%emt 0:00:28]} 18. Be3 {[%emt 0:01:28]} Bxe3 {[%emt 0:00:24]} 19. Qxe3 {[%emt 0:00:20]} Rag8 {[%emt 0:01:28]} 20. a5 {[%emt 0:01:44]} Rg7 {[%emt 0:00:44]} 21. b5 {[%emt 0:00:48]} axb5 {[%emt 0:01:41]} 22. Bxb5 {[%emt 0:00:15]} 1-0

[Event "SWE-ch Class 1 2019"]
[Site "Eskilstuna"]
[Date "2019.07.13"]
[Round "6.5"]
[White "Jonsson, Krister"]
[Black "Muganlinskij, Hussein"]
[Result "1/2-1/2"]
[ECO "D11"]
[WhiteElo "2068"]
[BlackElo "2022"]
[Annotator "NA"]
[PlyCount "136"]
[EventDate "2019.07.06"]
[EventType "tourn"]
[EventCountry "SWE"]
[SourceTitle "playchess.com"]
[Source "ChessBase"]
[SourceQuality "1"]
[TimeControl "40/5400+30:1800+30"]

1. d4 {[%emt 0:00:00]} d5 {[%emt 0:00:00]} 2. c4 {[%emt 0:00:00]} c6 {[%emt 0:00:00]} 3. Nf3 {[%emt 0:00:00]} Nf6 {[%emt 0:00:00]} 4. Qc2 {[%emt 0:01:31]} g6 {[%emt 0:02:14]} 5. e3 {[%emt 0:06:50]} Bg7 {[%emt 0:00:30]} 6. Nc3 {[%emt 0:00:27]} O-O {[%emt 0:00:18]} 7. b3 {[%emt 0:03:35]} Bf5 {[%emt 0:00:33]} 8. Bd3 {[%emt 0:00:28]} Bxd3 {[%emt 0:00:09]} 9. Qxd3 {[%emt 0:00:03]} e6 {[%emt 0:09:27]} 10. O-O {[%emt 0:08:42]} Re8 {[%emt 0:00:23]} 11. Rd1 {[%emt 0:06:25]} Nbd7 {[%emt 0:05:13]} 12. Bb2 {[%emt 0:04:59]} a6 {[%emt 0:02:42]} 13. Rd2 {[%emt 0:05:49]} b5 {[%emt 0:02:23]} 14. Rc1 {[%emt 0:10:52]} b4 {[%emt 0:07:17]} 15. Na4 {[%emt 0:00:20]} Ne4 {[%emt 0:00:08]} 16. Rdc2 {[%emt 0:00:22]} Nb6 {[%emt 0:00:18]} 17. cxd5 {[%emt 0:03:22]} Nxa4 {[%emt 0:01:53]} 18. bxa4 {[%emt 0:00:57]} cxd5 {[%emt 0:00:21]} 19. Ne5 {[%emt 0:03:46]} Nd6 {[%emt 0:03:43]} 20. Nc6 {[%emt 0:07:43]} Qb6 {[%emt 0:01:45]} 21. a5 {[%emt 0:00:08]} Qb7 {[%emt 0:01:59]} 22. Qb3 {[%emt 0:01:15]} Nc4 {[%emt 0:01:03]} 23. Nxb4 {[%emt 0:02:43]} Nxa5 {[%emt 0:02:27]} 24. Qa4 {[%emt 0:00:28]} Nc4 {[%emt 0:00:16]} 25. Nd3 {[%emt 0:01:12]} Qb5 {[%emt 0:06:59]} 26. Nc5 {[%emt 0:03:18]} Bf8 {[%emt 0:03:05]} 27. Bc3 {[%emt 0:01:54]} Bxc5 {[%emt 0:04:21]} 28. Qxb5 {[%emt 0:00:05]} axb5 {[%emt 0:00:05]} 29. dxc5 {[%emt 0:00:08]} Rec8 {[%emt 0:00:28]} 30. Bb4 {[%emt 0:00:33]} f5 {[%emt 0:08:17]} 31. g3 {[%emt 0:01:25]} Kf7 {[%emt 0:04:52]} 32. Rb1 {[%emt 0:00:33]} Ke8 {[%emt 0:02:11]} 33. Rb3 {[%emt 0:04:39]} Kd7 {[%emt 0:01:01]} 34. Kg2 {[%emt 0:00:13]} Kc6 {[%emt 0:00:25]} 35. a3 {[%emt 0:01:27]} Ra4 {[%emt 0:05:41]} 36. Rcc3 {[%emt 0:04:17]} g5 {[%emt 0:01:59]} 37. h3 {[%emt 0:01:02]} h5 {[%emt 0:00:15]} 38. Rd3 {[%emt 0:00:31]} g4 {[%emt 0:00:16]} 39. h4 {[%emt 0:00:12]} Ne5 {[%emt 0:01:03]} 40. Rd1 {[%emt 0:02:35]} Nf3 {[%emt 0:06:11]} 41. Kf1 {[%emt 0:35:02]} Ne5 {[%emt 0:32:26]} 42. Ke2 {[%emt 0:01:50]} Re8 {[%emt 0:00:23]} 43. Kf1 {[%emt 0:07:13]} Nc4 {[%emt 0:00:13]} 44. Rc3 {[%emt 0:00:00]} Rea8 {[%emt 0:00:00]} 45. Rdd3 {[%emt 0:00:00]} R4a7 {[%emt 0:00:00]} 46. Rb3 {[%emt 0:00:00]} Rf7 {[%emt 0:00:00]} 47. Rb1 {[%emt 0:00:00]} Re8 {[%emt 0:00:00]} 48. Rdb3 {[%emt 0:00:00]} Ra8 {[%emt 0:00:00]} 49. Rd3 {[%emt 0:00:00]} e5 {[%emt 0:00:00]} 50. Kg2 {[%emt 0:00:00]} Raf8 {[%emt 0:00:00]} 51. Be1 {[%emt 0:00:00]} Ra8 {[%emt 0:00:00]} 52. Bb4 {[%emt 0:00:00]} f4 {[%emt 0:00:00]} 53. exf4 {[%emt 0:00:00]} exf4 {[%emt 0:00:00]} 54. Re1 {[%emt 0:00:00]} fxg3 {[%emt 0:00:00]} 55. Kxg3 {[%emt 0:00:00]} Rf6 {[%emt 0:00:00]} 56. f3 {[%emt 0:03:37]} gxf3 {[%emt 0:00:00]} 57. Rxf3 {[%emt 0:00:12]} Rg8+ {[%emt 0:00:00]} 58. Kf2 {[%emt 0:00:03]} Rfg6 {[%emt 0:00:00]} 59. Re7 {[%emt 0:01:05]} Rg2+ {[%emt 0:00:00]} 60. Ke1 {[%emt 0:00:05]} Rg1+ {[%emt 0:00:00]} 61. Ke2 {[%emt 0:00:54]} R8g2+ {[%emt 0:00:00]} 62. Rf2 {[%emt 0:00:36]} Rxf2+ {[%emt 0:00:00]} 63. Kxf2 {[%emt 0:00:01]} Rg4 {[%emt 0:00:03]} 64. Re6+ {[%emt 0:00:45]} Kd7 {[%emt 0:01:04]} 65. Rh6 {[%emt 0:00:07]} Rxh4 {[%emt 0:00:11]} 66. Rh7+ {[%emt 0:00:20]} Kc6 {[%emt 0:10:48]} 67. Rh6+ {[%emt 0:00:05]} Kd7 {[%emt 0:00:07]} 68. Rh7+ {[%emt 0:00:06]} Kc6 {[%emt 0:00:06]} 1/2-1/2

[Event "SWE-ch Class 1 2019"]
[Site "Eskilstuna"]
[Date "2019.07.13"]
[Round "6.6"]
[White "Carlsson, Gustav"]
[Black "Arvidsson, Jonas"]
[Result "0-1"]
[ECO "A20"]
[WhiteElo "1982"]
[BlackElo "1965"]
[Annotator "NA"]
[PlyCount "96"]
[EventDate "2019.07.06"]
[EventType "tourn"]
[EventCountry "SWE"]
[SourceTitle "playchess.com"]
[Source "ChessBase"]
[SourceQuality "1"]
[TimeControl "40/5400+30:1800+30"]

1. c4 {[%emt 0:00:00]} e5 {[%emt 0:00:00]} 2. g3 {[%emt 0:00:00]} Nf6 {[%emt 0:00:17]} 3. Bg2 {[%emt 0:00:00]} d5 {[%emt 0:00:38]} 4. cxd5 {[%emt 0:00:23]} Nxd5 {[%emt 0:00:07]} 5. Nf3 {[%emt 0:00:19]} Nc6 {[%emt 0:01:29]} 6. O-O {[%emt 0:00:32]} Be6 {[%emt 0:01:31]} 7. d4 {[%emt 0:00:54]} exd4 {[%emt 0:05:58]} 8. Nxd4 {[%emt 0:00:26]} Nxd4 {[%emt 0:00:30]} 9. Qxd4 {[%emt 0:00:13]} c6 {[%emt 0:00:46]} 10. Nc3 {[%emt 0:05:47]} Nb4 {[%emt 0:06:25]} 11. Qe5 {[%emt 0:03:29]} Qd6 {[%emt 0:02:36]} 12. Qa5 {[%emt 0:11:56]} Qc5 {[%emt 0:08:05]} 13. Qc7 {[%emt 0:04:40]} Qb6 {[%emt 0:08:41]} 14. Qxb6 {[%emt 0:02:39]} axb6 {[%emt 0:00:05]} 15. a3 {[%emt 0:02:31]} Na6 {[%emt 0:04:57]} 16. Bf4 {[%emt 0:07:12]} Nc5 {[%emt 0:07:41]} 17. Ne4 {[%emt 0:06:06]} Nxe4 {[%emt 0:02:58]} 18. Bxe4 {[%emt 0:00:12]} b5 {[%emt 0:01:15]} 19. Rac1 {[%emt 0:01:17]} Rc8 {[%emt 0:07:20]} 20. h4 {[%emt 0:04:55]} Be7 {[%emt 0:01:17]} 21. Be5 {[%emt 0:01:25]} O-O {[%emt 0:02:21]} 22. b4 {[%emt 0:02:18]} Bc4 {[%emt 0:02:28]} 23. Bf3 {[%emt 0:00:53]} Rfd8 {[%emt 0:01:34]} 24. Rfd1 {[%emt 0:01:47]} f6 {[%emt 0:00:59]} 25. Bc3 {[%emt 0:03:12]} Ra8 {[%emt 0:02:04]} 26. Rxd8+ {[%emt 0:00:20]} Rxd8 {[%emt 0:01:17]} 27. Kg2 {[%emt 0:01:40]} Kf7 {[%emt 0:00:47]} 28. g4 {[%emt 0:02:51]} g6 {[%emt 0:02:39]} 29. h5 {[%emt 0:09:28]} g5 {[%emt 0:04:55]} 30. Kf1 {[%emt 0:03:42]} Bd5 {[%emt 0:02:28]} 31. Bxd5+ {[%emt 0:07:07]} Rxd5 {[%emt 0:00:10]} 32. e4 {[%emt 0:00:48]} Rd8 {[%emt 0:04:34]} 33. Ke2 {[%emt 0:01:43]} Ke6 {[%emt 0:00:32]} 34. Bb2 {[%emt 0:02:09]} Rd7 {[%emt 0:01:54]} 35. Rc3 {[%emt 0:01:43]} Bd6 {[%emt 0:00:58]} 36. Rd3 {[%emt 0:01:33]} h6 {[%emt 0:02:03]} 37. f4 {[%emt 0:03:00]} gxf4 {[%emt 0:01:34]} 38. Kf3 {[%emt 0:01:34]} Be5 {[%emt 0:02:07]} 39. Rxd7 {[%emt 0:00:22]} Kxd7 {[%emt 0:00:02]} 40. Bc1 {[%emt 0:01:07]} Ke6 {[%emt 0:01:13]} 41. Ke2 {[%emt 0:36:09]} b6 {[%emt 0:31:09]} 42. Kd3 {[%emt 0:01:18]} c5 {[%emt 0:00:00]} 43. Ke2 {[%emt 0:00:00]} Bd6 {[%emt 0:00:00]} 44. Kf3 {[%emt 0:00:00]} c4 {[%emt 0:00:00]} 45. Bb2 {[%emt 0:00:00]} Be5 {[%emt 0:00:00]} 46. Bc1 {[%emt 0:00:00]} c3 {[%emt 0:00:00]} 47. Ke2 {[%emt 0:00:00]} Bd6 {[%emt 0:00:00]} 48. Kf3 {[%emt 0:00:00]} Bc7 {[%emt 0:00:00]} 0-1

[Event "SWE-ch Class 1 2019"]
[Site "Eskilstuna"]
[Date "2019.07.13"]
[Round "6.7"]
[White "Eriksson, Joel"]
[Black "Willinger, Tim"]
[Result "0-1"]
[ECO "D00"]
[WhiteElo "1998"]
[BlackElo "2053"]
[Annotator "NA"]
[PlyCount "102"]
[EventDate "2019.07.06"]
[EventType "tourn"]
[EventCountry "SWE"]
[SourceTitle "playchess.com"]
[Source "ChessBase"]
[SourceQuality "1"]
[TimeControl "40/5400+30:1800+30"]

1. d4 {[%emt 0:00:00]} d5 {[%emt 0:01:16]} 2. Nc3 {[%emt 0:00:00]} Nf6 {[%emt 0:01:35]} 3. Bf4 {[%emt 0:00:00]} g6 {[%emt 0:00:39]} 4. e3 {[%emt 0:00:00]} Bg7 {[%emt 0:00:06]} 5. h4 {[%emt 0:00:15]} h5 {[%emt 0:01:14]} 6. Bd3 {[%emt 0:05:22]} c5 {[%emt 0:04:29]} 7. dxc5 {[%emt 0:02:30]} O-O {[%emt 0:02:45]} 8. Qd2 {[%emt 0:03:11]} Nc6 {[%emt 0:11:08]} 9. O-O-O {[%emt 0:03:20]} Qa5 {[%emt 0:03:33]} 10. Kb1 {[%emt 0:05:54]} e5 {[%emt 0:03:30]} 11. Bg5 {[%emt 0:03:20]} Qxc5 {[%emt 0:02:24]} 12. f3 {[%emt 0:05:39]} Be6 {[%emt 0:09:03]} 13. Nh3 {[%emt 0:15:40]} Qb4 {[%emt 0:17:21]} 14. Nf2 {[%emt 0:04:22]} d4 {[%emt 0:05:36]} 15. exd4 {[%emt 0:04:57]} exd4 {[%emt 0:01:36]} 16. Nce4 {[%emt 0:04:37]} Nxe4 {[%emt 0:06:30]} 17. Qxb4 {[%emt 0:00:37]} Nxb4 {[%emt 0:00:09]} 18. Nxe4 {[%emt 0:01:39]} Bxa2+ {[%emt 0:00:43]} 19. Ka1 {[%emt 0:00:25]} Nxd3 {[%emt 0:01:23]} 20. Kxa2 {[%emt 0:00:47]} Nb4+ {[%emt 0:00:46]} 21. Kb3 {[%emt 0:00:37]} f5 {[%emt 0:02:17]} 22. Nc5 {[%emt 0:03:01]} Nc6 {[%emt 0:03:13]} 23. Ne6 {[%emt 0:01:24]} Rfc8 {[%emt 0:00:23]} 24. Rhe1 {[%emt 0:02:11]} Re8 {[%emt 0:03:10]} 25. Nc7 {[%emt 0:13:19]} Rxe1 {[%emt 0:00:12]} 26. Rxe1 {[%emt 0:00:05]} Rc8 {[%emt 0:01:49]} 27. Nd5 {[%emt 0:00:25]} Kf7 {[%emt 0:01:35]} 28. Nf4 {[%emt 0:03:08]} Be5 {[%emt 0:04:33]} 29. Nd3 {[%emt 0:02:21]} Bd6 {[%emt 0:00:25]} 30. Re2 {[%emt 0:01:09]} b5 {[%emt 0:00:50]} 31. Bd2 {[%emt 0:03:45]} a5 {[%emt 0:01:13]} 32. Bg5 {[%emt 0:00:43]} a4+ {[%emt 0:00:26]} 33. Ka2 {[%emt 0:00:07]} Re8 {[%emt 0:01:31]} 34. Rxe8 {[%emt 0:03:21]} Kxe8 {[%emt 0:00:05]} 35. Nf4 {[%emt 0:01:25]} Bxf4 {[%emt 0:00:29]} 36. Bxf4 {[%emt 0:00:06]} Kd7 {[%emt 0:00:26]} 37. Ka3 {[%emt 0:01:44]} Ke6 {[%emt 0:00:25]} 38. b3 {[%emt 0:00:29]} axb3 {[%emt 0:00:27]} 39. Kxb3 {[%emt 0:00:12]} Ne7 {[%emt 0:05:46]} 40. Bb8 {[%emt 0:04:41]} Nd5 {[%emt 0:01:00]} 41. g3 {[%emt 0:31:25]} f4 {[%emt 0:05:56]} 42. gxf4 {[%emt 0:00:00]} Kf5 {[%emt 0:02:17]} 43. Be5 {[%emt 0:00:00]} Nxf4 {[%emt 0:08:50]} 44. Bxd4 {[%emt 0:00:00]} Ng2 {[%emt 0:01:32]} 45. Bf2 {[%emt 0:00:00]} Kf4 {[%emt 0:00:11]} 46. Kb4 {[%emt 0:00:00]} Kxf3 {[%emt 0:00:06]} 47. Bd4 {[%emt 0:00:00]} Nxh4 {[%emt 0:00:11]} 48. Kxb5 {[%emt 0:00:00]} Nf5 {[%emt 0:01:21]} 49. Bf6 {[%emt 0:00:00]} h4 {[%emt 0:00:14]} 50. c4 {[%emt 0:00:00]} Nd6+ {[%emt 0:01:48]} 51. Kc6 {[%emt 0:00:00]} h3 {[%emt 0:00:50]} 0-1

[Event "SWE-ch Class 1 2019"]
[Site "Eskilstuna"]
[Date "2019.07.13"]
[Round "6.8"]
[White "Carnstam, Tomas"]
[Black "Thollin, Robert"]
[Result "1/2-1/2"]
[ECO "D94"]
[WhiteElo "1967"]
[BlackElo "1983"]
[Annotator "NA"]
[PlyCount "58"]
[EventDate "2019.07.06"]
[EventType "tourn"]
[EventCountry "SWE"]
[SourceTitle "playchess.com"]
[Source "ChessBase"]
[SourceQuality "1"]
[TimeControl "40/5400+30:1800+30"]

1. c4 {[%emt 0:00:00]} c5 {[%emt 0:00:54]} 2. Nc3 {[%emt 0:00:40]} Nf6 {[%emt 0:00:08]} 3. e3 {[%emt 0:01:38]} g6 {[%emt 0:02:21]} 4. d4 {[%emt 0:00:39]} cxd4 {[%emt 0:00:09]} 5. exd4 {[%emt 0:00:05]} Bg7 {[%emt 0:00:12]} 6. Nf3 {[%emt 0:01:29]} O-O {[%emt 0:00:38]} 7. Bd3 {[%emt 0:04:46]} d5 {[%emt 0:08:28]} 8. cxd5 {[%emt 0:04:42]} Nxd5 {[%emt 0:01:10]} 9. O-O {[%emt 0:15:31]} Nc6 {[%emt 0:10:54]} 10. Be3 {[%emt 0:15:02]} Bg4 {[%emt 0:09:15]} 11. h3 {[%emt 0:00:49]} Bxf3 {[%emt 0:02:29]} 12. Qxf3 {[%emt 0:00:03]} Ndb4 {[%emt 0:09:03]} 13. Be4 {[%emt 0:04:02]} f5 {[%emt 0:06:29]} 14. Bxc6 {[%emt 0:01:16]} Nxc6 {[%emt 0:04:24]} 15. d5 {[%emt 0:02:14]} Ne5 {[%emt 0:01:54]} 16. Qd1 {[%emt 0:05:06]} Nc4 {[%emt 0:03:47]} 17. Qb3 {[%emt 0:02:54]} Nxe3 {[%emt 0:02:30]} 18. fxe3 {[%emt 0:00:11]} Bxc3 {[%emt 0:04:53]} 19. bxc3 {[%emt 0:01:11]} b6 {[%emt 0:02:38]} 20. c4 {[%emt 0:08:16]} Qd6 {[%emt 0:01:54]} 21. Qd3 {[%emt 0:10:33]} Rac8 {[%emt 0:02:02]} 22. Rad1 {[%emt 0:03:36]} Rf6 {[%emt 0:08:48]} 23. Rf4 {[%emt 0:02:16]} Qc5 {[%emt 0:02:26]} 24. Kh1 {[%emt 0:00:43]} Kg7 {[%emt 0:00:14]} 25. Rdf1 {[%emt 0:03:07]} e5 {[%emt 0:02:44]} 26. dxe6 {[%emt 0:00:33]} Rxe6 {[%emt 0:00:09]} 27. e4 {[%emt 0:02:57]} Qxc4 {[%emt 0:01:48]} 28. Qd7+ {[%emt 0:00:19]} Kh6 {[%emt 0:05:43]} 29. exf5 {[%emt 0:01:34]} Re4 {[%emt 0:00:54]} 1/2-1/2

[Event "SWE-ch Class 1 2019"]
[Site "Eskilstuna"]
[Date "2019.07.13"]
[Round "6.9"]
[White "Johansson, Roland"]
[Black "Akerlund, Fredrik"]
[Result "1/2-1/2"]
[ECO "C18"]
[WhiteElo "2002"]
[BlackElo "1815"]
[Annotator "NA"]
[PlyCount "89"]
[EventDate "2019.07.06"]
[EventType "tourn"]
[EventCountry "SWE"]
[SourceTitle "playchess.com"]
[Source "ChessBase"]
[SourceQuality "1"]
[TimeControl "40/5400+30:1800+30"]

1. e4 {[%emt 0:02:37]} e6 {[%emt 0:00:00]} 2. d4 {[%emt 0:00:05]} d5 {[%emt 0:00:00]} 3. Nc3 {[%emt 0:00:04]} Bb4 {[%emt 0:00:19]} 4. e5 {[%emt 0:00:06]} c5 {[%emt 0:00:03]} 5. a3 {[%emt 0:00:04]} Bxc3+ {[%emt 0:01:04]} 6. bxc3 {[%emt 0:00:07]} Nc6 {[%emt 0:01:10]} 7. Qg4 Nge7 8. Qxg7 Rg8 9. Qxh7 cxd4 {[%emt 0:00:39]} 10. f4 dxc3 {[%emt 0:01:28]} 11. Ne2 Qc7 {[%emt 0:24:19]} 12. Rb1 {[%emt 0:08:37]} Bd7 {[%emt 0:05:38]} 13. Qd3 {[%emt 0:04:06]} d4 {[%emt 0:06:04]} 14. Nxd4 {[%emt 0:03:13]} Nxd4 {[%emt 0:02:10]} 15. Qxd4 {[%emt 0:00:06]} Nd5 {[%emt 0:12:45]} 16. Rg1 {[%emt 0:01:42]} Qa5 {[%emt 0:05:07]} 17. Rxb7 {[%emt 0:05:18]} Bc6 {[%emt 0:05:20]} 18. Rb1 {[%emt 0:01:53]} O-O-O {[%emt 0:10:18]} 19. Qc4 {[%emt 0:04:42]} Kc7 {[%emt 0:07:22]} 20. Bd3 {[%emt 0:06:11]} Rb8 {[%emt 0:03:52]} 21. Rb3 {[%emt 0:04:40]} Rxb3 {[%emt 0:01:58]} 22. cxb3 {[%emt 0:00:06]} Qb6 {[%emt 0:00:50]} 23. Kf1 {[%emt 0:02:34]} Ne3+ {[%emt 0:00:30]} 24. Bxe3 {[%emt 0:00:23]} Qxe3 {[%emt 0:00:01]} 25. Be2 {[%emt 0:02:59]} Kb7 {[%emt 0:07:26]} 26. g4 {[%emt 0:13:13]} Qh3+ {[%emt 0:01:21]} 27. Ke1 {[%emt 0:00:28]} Qxh2 {[%emt 0:00:55]} 28. Rf1 {[%emt 0:04:13]} Qg3+ {[%emt 0:01:13]} 29. Rf2 {[%emt 0:00:28]} Rd8 {[%emt 0:00:13]} 30. Qa6+ {[%emt 0:01:24]} Kc7 {[%emt 0:01:14]} 31. Qxa7+ {[%emt 0:00:06]} Bb7 {[%emt 0:00:35]} 32. Ba6 {[%emt 0:07:25]} Qg1+ {[%emt 0:01:04]} 33. Bf1 {[%emt 0:04:17]} Qxg4 {[%emt 0:00:40]} 34. Qa5+ {[%emt 0:01:24]} Kc8 {[%emt 0:00:27]} 35. Qxc3+ {[%emt 0:00:07]} Kb8 {[%emt 0:00:25]} 36. Be2 {[%emt 0:05:36]} Qg1+ {[%emt 0:00:53]} 37. Rf1 {[%emt 0:00:07]} Qg6 {[%emt 0:00:30]} 38. Qe3 {[%emt 0:04:12]} Rc8 {[%emt 0:00:35]} 39. Rg1 {[%emt 0:00:49]} Qb1+ {[%emt 0:00:28]} 40. Kf2 {[%emt 0:00:13]} Qh7 {[%emt 0:00:30]} 41. Bd3 {[%emt 0:34:13]} Qh2+ {[%emt 0:30:28]} 42. Kf1 {[%emt 0:00:37]} Qb2 {[%emt 0:00:00]} 43. Bc4 {[%emt 0:00:00]} Rd8 {[%emt 0:00:00]} 44. Be2 {[%emt 0:00:00]} Rh8 {[%emt 0:00:00]} 45. Bc4 {[%emt 0:00:00]} 1/2-1/2

[Event "SWE-ch Class 1 2019"]
[Site "Eskilstuna"]
[Date "2019.07.13"]
[Round "6.10"]
[White "Grundel, Sam"]
[Black "Karlsson, Roger"]
[Result "1/2-1/2"]
[ECO "B06"]
[WhiteElo "2069"]
[BlackElo "1915"]
[Annotator "NA"]
[PlyCount "60"]
[EventDate "2019.07.06"]
[EventType "tourn"]
[EventCountry "SWE"]
[SourceTitle "playchess.com"]
[Source "ChessBase"]
[SourceQuality "1"]
[TimeControl "40/5400+30:1800+30"]

1. e4 {[%emt 0:00:00]} g6 {[%emt 0:02:29]} 2. d4 {[%emt 0:00:00]} Bg7 {[%emt 0:00:33]} 3. f4 {[%emt 0:01:48]} c5 {[%emt 0:07:59]} 4. Nf3 {[%emt 0:02:27]} cxd4 {[%emt 0:00:54]} 5. Nxd4 {[%emt 0:00:11]} Nc6 {[%emt 0:00:27]} 6. Nb3 {[%emt 0:03:43]} d6 {[%emt 0:03:56]} 7. Nc3 {[%emt 0:00:50]} a6 {[%emt 0:04:48]} 8. Be3 {[%emt 0:02:29]} Nf6 {[%emt 0:00:57]} 9. Be2 {[%emt 0:05:20]} b5 {[%emt 0:02:52]} 10. a3 {[%emt 0:00:38]} Bb7 {[%emt 0:08:59]} 11. Qd2 {[%emt 0:02:14]} Rc8 {[%emt 0:05:09]} 12. O-O {[%emt 0:02:44]} Na5 {[%emt 0:07:49]} 13. Nxa5 {[%emt 0:00:49]} Qxa5 {[%emt 0:00:23]} 14. Bf3 {[%emt 0:01:58]} Qc7 {[%emt 0:04:26]} 15. Rad1 {[%emt 0:05:07]} O-O {[%emt 0:06:25]} 16. Bd4 {[%emt 0:09:36]} Rfd8 {[%emt 0:11:38]} 17. Qf2 {[%emt 0:04:23]} Nd7 {[%emt 0:01:53]} 18. Rd2 {[%emt 0:02:38]} Bxd4 {[%emt 0:09:42]} 19. Qxd4 {[%emt 0:02:47]} Qc5 {[%emt 0:05:35]} 20. Rfd1 {[%emt 0:01:06]} Qxd4+ {[%emt 0:05:57]} 21. Rxd4 {[%emt 0:01:48]} Nb6 {[%emt 0:01:10]} 22. e5 {[%emt 0:06:39]} Bxf3 {[%emt 0:00:38]} 23. gxf3 {[%emt 0:00:08]} d5 {[%emt 0:01:16]} 24. Nxd5 {[%emt 0:04:13]} Nxd5 {[%emt 0:00:25]} 25. Rxd5 {[%emt 0:00:11]} Rxd5 {[%emt 0:00:06]} 26. Rxd5 {[%emt 0:00:08]} Rxc2 {[%emt 0:00:24]} 27. Rd8+ {[%emt 0:00:57]} Kg7 {[%emt 0:00:10]} 28. Ra8 {[%emt 0:02:34]} Rxb2 {[%emt 0:01:04]} 29. Rxa6 {[%emt 0:00:06]} Ra2 {[%emt 0:00:57]} 30. Ra5 {[%emt 0:00:48]} f5 {[%emt 0:04:21]} 1/2-1/2

[Event "SWE-ch Class 1 2019"]
[Site "Eskilstuna"]
[Date "2019.07.14"]
[Round "7.1"]
[White "Attefall, Fredrik"]
[Black "Bernhard, Jonathan"]
[Result "1/2-1/2"]
[ECO "B01"]
[WhiteElo "2077"]
[BlackElo "1917"]
[Annotator "NA"]
[PlyCount "50"]
[EventDate "2019.07.06"]
[EventType "tourn"]
[EventCountry "SWE"]
[SourceTitle "playchess.com"]
[Source "ChessBase"]
[SourceQuality "1"]
[TimeControl "40/5400+30:1800+30"]

1. e4 {[%emt 0:00:00]} Nc6 {[%emt 0:00:00]} 2. d4 {[%emt 0:00:00]} d5 {[%emt 0:00:00]} 3. exd5 {[%emt 0:00:30]} Qxd5 {[%emt 0:00:00]} 4. Nf3 {[%emt 0:00:32]} Bg4 {[%emt 0:00:00]} 5. Nc3 {[%emt 0:01:17]} Qh5 {[%emt 0:00:00]} 6. Be2 {[%emt 0:11:46]} Nf6 {[%emt 0:00:08]} 7. O-O $11 {[%emt 0:07:50]} O-O-O {[%emt 0:02:06]} 8. h3 {[%emt 0:01:37]} Nxd4 {[%emt 0:00:07]} 9. Nxd4 {[%emt 0:04:51]} Bxe2 {[%emt 0:00:35]} 10. Ncxe2 {[%emt 0:00:40]} e5 {[%emt 0:00:09]} 11. c3 {[%emt 0:03:46]} Bc5 {[%emt 0:03:07]} 12. Qa4 {[%emt 0:06:48]} exd4 {[%emt 0:00:07]} 13. Nxd4 {[%emt 0:00:40]} Rhe8 {[%emt 0:06:16]} 14. Nf3 {[%emt 0:08:59]} Ne4 {[%emt 0:05:21]} 15. b4 {[%emt 0:04:57]} Bb6 {[%emt 0:00:05]} 16. c4 {[%emt 0:01:38]} c5 {[%emt 0:01:09]} 17. Be3 {[%emt 0:02:41]} g5 {[%emt 0:02:22]} 18. bxc5 {[%emt 0:05:50]} Nxc5 {[%emt 0:03:54]} 19. Qb5 {[%emt 0:00:25]} Rxe3 {[%emt 0:02:25]} 20. fxe3 {[%emt 0:00:08]} g4 {[%emt 0:00:45]} 21. hxg4 {[%emt 0:01:51]} Qxg4 {[%emt 0:00:03]} 22. Nd4 {[%emt 0:06:25]} Rxd4 {[%emt 0:20:55]} 23. exd4 {[%emt 0:00:55]} Qxd4+ {[%emt 0:00:02]} 24. Kh1 {[%emt 0:00:26]} Qh4+ {[%emt 0:00:02]} 25. Kg1 {[%emt 0:00:20]} Qd4+ {[%emt 0:00:38]} 1/2-1/2

[Event "SWE-ch Class 1 2019"]
[Site "Eskilstuna"]
[Date "2019.07.14"]
[Round "7.2"]
[White "Halvarsson, Peter"]
[Black "Bjorkman, Filip"]
[Result "1/2-1/2"]
[ECO "B42"]
[WhiteElo "1903"]
[BlackElo "1956"]
[Annotator "NA"]
[PlyCount "34"]
[EventDate "2019.07.06"]
[EventType "tourn"]
[EventCountry "SWE"]
[SourceTitle "playchess.com"]
[Source "ChessBase"]
[SourceQuality "1"]
[TimeControl "40/5400+30:1800+30"]

1. e4 {[%emt 0:00:00]} e6 {[%emt 0:02:32]} 2. d4 {[%emt 0:00:00]} c5 {[%emt 0:00:16]} 3. Nf3 {[%emt 0:00:00]} cxd4 {[%emt 0:00:59]} 4. Nxd4 {[%emt 0:00:00]} a6 {[%emt 0:00:13]} 5. Bd3 {[%emt 0:08:56]} Nc6 {[%emt 0:01:31]} 6. Nxc6 {[%emt 0:01:24]} bxc6 {[%emt 0:00:10]} 7. Be3 {[%emt 0:03:18]} Rb8 {[%emt 0:07:17]} 8. O-O {[%emt 0:11:47]} Rxb2 {[%emt 0:07:11]} 9. Nd2 {[%emt 0:04:15]} Rb8 {[%emt 0:01:15]} 10. e5 {[%emt 0:08:04]} d5 {[%emt 0:01:19]} 11. exd6 {[%emt 0:11:18]} Bxd6 {[%emt 0:01:15]} 12. Nc4 {[%emt 0:07:57]} Bc7 {[%emt 0:00:20]} 13. Qf3 {[%emt 0:08:36]} Nf6 {[%emt 0:09:17]} 14. Qxc6+ {[%emt 0:02:38]} Bd7 {[%emt 0:03:25]} 15. Qc5 {[%emt 0:03:27]} Bc8 {[%emt 0:05:11]} 16. Qc6+ {[%emt 0:08:51]} Bd7 {[%emt 0:03:55]} 17. Qc5 {[%emt 0:00:04]} Bc8 {[%emt 0:00:16]} 1/2-1/2

[Event "SWE-ch Class 1 2019"]
[Site "Eskilstuna"]
[Date "2019.07.14"]
[Round "7.3"]
[White "Forsberg, Andre"]
[Black "Lyngsjo, Hakan"]
[Result "1/2-1/2"]
[ECO "B04"]
[WhiteElo "1982"]
[BlackElo "2029"]
[Annotator "NA"]
[PlyCount "21"]
[EventDate "2019.07.06"]
[EventType "tourn"]
[EventCountry "SWE"]
[SourceTitle "playchess.com"]
[Source "ChessBase"]
[SourceQuality "1"]
[TimeControl "40/5400+30:1800+30"]

1. e4 {[%emt 0:01:03]} Nf6 {[%emt 0:00:00]} 2. e5 {[%emt 0:00:22]} Nd5 {[%emt 0:00:06]} 3. d4 {[%emt 0:00:27]} d6 {[%emt 0:00:28]} 4. Nf3 {[%emt 0:00:27]} dxe5 {[%emt 0:00:36]} 5. Nxe5 {[%emt 0:00:26]} Nd7 {[%emt 0:02:28]} 6. Nxf7 {[%emt 0:02:35]} Kxf7 {[%emt 0:00:14]} 7. Qh5+ {[%emt 0:00:11]} Ke6 {[%emt 0:00:33]} 8. Qg4+ {[%emt 0:00:29]} Kf7 {[%emt 0:01:37]} 9. Qh5+ {[%emt 0:00:53]} Ke6 {[%emt 0:00:07]} 10. Qg4+ {[%emt 0:00:06]} Kf7 {[%emt 0:00:10]} 11. Qh5+ {[%emt 0:00:16]} 1/2-1/2